bitfinex/quotes_BTCUSD_20241003
["timestamp","ask_amount","ask_price","bid_price","bid_amount"]
[1727946520627,0.165558,60402.0,60397.0,0.165569]
[1727946521095,0.331106,60404.0,60392.0,0.24828066]
[1727946521096,0.165552,60404.0,60392.0,0.24828066]
[1727946521537,0.165558,60402.0,60392.0,0.24828066]
[1727946521927,0.331106,60404.0,60395.0,0.331149]
[1727946522041,0.165555,60403.0,60399.0,0.165562]
[1727946522269,0.165558,60402.0,60397.0,0.165569]
[1727946522473,0.165555,60403.0,60398.0,0.165567]
[1727946522695,0.16555,60405.0,60401.0,0.165559]
[1727946522937,0.16555,60405.0,60397.0,0.496709]
[1727946522938,0.331101,60405.0,60397.0,0.496709]
[1727946523160,0.165561,60401.0,60399.0,0.002]
[1727946523391,0.331118,60402.0,60399.0,0.004]
[1727946523619,0.165561,60401.0,60399.0,0.002]
[1727946523848,0.33112,60401.0,60395.0,0.41385466]
[1727946524090,0.165588,60391.0,60385.0,0.57948566]
[1727946524310,0.165579,60395.0,60385.0,0.24828066]
[1727946524531,0.165593,60389.0,60385.0,0.24828066]
[1727946524754,0.331164,60393.0,60381.0,0.24828066]
[1727946525044,0.42894009,60392.0,60372.0,0.72058066]
[1727946525261,0.42894009,60392.0,60372.0,0.24828066]
[1727946525262,0.28480043,60382.0,60372.0,0.24828066]
[1727946525575,0.165636,60373.0,60372.0,0.24828066]
[1727946525984,0.165636,60373.0,60367.0,0.001636]
[1727946525985,0.01753137,60373.0,60367.0,0.001636]
[1727946526223,0.165646,60370.0,60367.0,0.24991666]
[1727946526458,0.16565,60368.0,60367.0,0.001636]
[1727946526930,0.18328875,60368.0,60367.0,0.001636]
[1727946527411,0.34647546,60368.0,60367.0,0.001636]
[1727946527639,0.37471616,60368.0,60367.0,0.001636]
[1727946527863,0.41811226,60368.0,60367.0,0.001636]
[1727946528389,0.41811698,60368.0,60367.0,0.001636]
[1727946528589,0.40046276,60368.0,60367.0,0.004636]
[1727946528834,0.41811014,60368.0,60367.0,0.004636]
[1727946529064,0.39214251,60368.0,60367.0,0.004636]
[1727946529780,0.39214251,60368.0,60367.0,0.006636]
[1727946530254,0.433307,60367.0,60362.0,0.001636]
[1727946530492,0.71565114,60363.0,60362.0,0.001636]
[1727946530721,0.77895694,60363.0,60362.0,0.001636]
[1727946530951,0.84716175,60363.0,60362.0,0.001636]
[1727946531481,0.96514365,60363.0,60362.0,0.001636]
[1727946531715,1.01034846,60363.0,60362.0,0.001636]
[1727946531957,0.87362128,60363.0,60362.0,0.001636]
[1727946532175,0.82841647,60363.0,60362.0,0.001636]
[1727946532399,0.88962128,60363.0,60362.0,0.003636]
[1727946532624,0.87562128,60363.0,60362.0,0.002636]
[1727946532858,1.03680799,60363.0,60362.0,0.001636]
[1727946533161,1.05080799,60363.0,60362.0,0.002636]
[1727946533262,0.81941647,60363.0,60362.0,0.003636]
[1727946533492,0.53461604,60363.0,60362.0,0.003636]
[1727946534509,0.53461604,60363.0,60362.0,0.002636]
[1727946534510,0.52061604,60363.0,60362.0,0.002636]
[1727946534725,0.39217508,60363.0,60362.0,0.001636]
[1727946534937,0.36350676,60363.0,60362.0,0.003636]
[1727946535393,0.34631091,60363.0,60362.0,0.001636]
[1727946535629,0.34831091,60363.0,60362.0,0.001636]
[1727946535863,0.34831091,60363.0,60362.0,0.003636]
[1727946535864,0.37650017,60363.0,60362.0,0.003636]
[1727946536095,0.47650017,60363.0,60362.0,0.003636]
[1727946536329,0.46350017,60363.0,60362.0,0.001636]
[1727946536586,0.47250017,60363.0,60362.0,0.002636]
[1727946537996,0.46350282,60363.0,60362.0,0.001636]
[1727946538243,0.50347793,60363.0,60362.0,0.002636]
[1727946538476,0.50547793,60363.0,60362.0,0.003636]
[1727946538707,0.48828867,60363.0,60362.0,0.003636]
[1727946538931,0.47228867,60363.0,60362.0,0.001636]
[1727946539201,0.44831356,60363.0,60362.0,0.002636]
[1727946539425,0.44831356,60363.0,60362.0,0.003636]
[1727946539426,0.46231356,60363.0,60362.0,0.003636]
[1727946539657,0.34631356,60363.0,60362.0,0.001636]
[1727946539884,0.35831356,60363.0,60362.0,0.002636]
[1727946540337,0.34085071,60363.0,60362.0,0.002636]
[1727946540575,0.34285071,60363.0,60362.0,0.003636]
[1727946541017,0.36017573,60363.0,60362.0,0.003636]
[1727946541313,0.44817573,60363.0,60362.0,0.002636]
[1727946541479,0.44817573,60363.0,60362.0,0.003636]
[1727946541480,0.44485071,60363.0,60362.0,0.003636]
[1727946541705,0.46219152,60363.0,60362.0,0.003636]
[1727946541934,0.44819152,60363.0,60362.0,0.002636]
[1727946542164,0.48416493,60363.0,60362.0,0.002636]
[1727946542403,0.48616493,60363.0,60362.0,0.002636]
[1727946542888,0.49616493,60363.0,60362.0,0.002636]
[1727946543118,0.51308361,60363.0,60362.0,0.001636]
[1727946543356,0.51308361,60363.0,60362.0,0.002636]
[1727946543357,0.49112049,60363.0,60362.0,0.002636]
[1727946543604,0.47416493,60363.0,60362.0,0.002636]
[1727946543837,0.47216493,60363.0,60362.0,0.001636]
[1727946544066,0.47416493,60363.0,60362.0,0.002636]
[1727946544549,0.48316493,60363.0,60362.0,0.003636]
[1727946544800,0.48316493,60363.0,60362.0,0.002636]
[1727946544801,0.47416493,60363.0,60362.0,0.002636]
[1727946545266,1.58416493,60363.0,60362.0,0.002636]
[1727946545729,1.58616493,60363.0,60362.0,0.003636]
[1727946545973,1.57416493,60363.0,60362.0,0.002636]
[1727946546294,1.57416493,60363.0,60341.0,0.24828066]
[1727946546295,0.165702,60349.0,60341.0,0.24828066]
[1727946546454,0.77056157,60349.0,60341.0,0.24828066]
[1727946546698,0.78791819,60349.0,60348.0,0.001632]
[1727946546957,0.90482959,60349.0,60348.0,0.001632]
[1727946547183,0.97846819,60349.0,60348.0,0.001632]
[1727946547440,0.93095995,60349.0,60348.0,0.001632]
[1727946547896,0.49128709,60349.0,60348.0,0.001632]
[1727946548120,0.46315673,60349.0,60348.0,0.001632]
[1727946548673,0.34288871,60349.0,60348.0,0.001632]
[1727946548885,0.34088871,60349.0,60348.0,0.002632]
[1727946549112,0.79456157,60349.0,60348.0,0.002632]
[1727946549351,0.34640598,60349.0,60348.0,0.001632]
[1727946549604,0.35240598,60349.0,60348.0,0.002632]
[1727946550012,0.37238475,60349.0,60348.0,0.001632]
[1727946550431,0.384353,60349.0,60348.0,0.002632]
[1727946550847,0.391353,60349.0,60348.0,0.002632]
[1727946551061,0.384353,60349.0,60348.0,0.002632]
[1727946551272,0.398353,60349.0,60348.0,0.002632]
[1727946551701,0.20916629,60349.0,60348.0,0.001632]
[1727946551950,0.20916629,60349.0,60348.0,0.002632]
[1727946551951,0.04097877,60349.0,60348.0,0.002632]
[1727946552152,0.03797877,60349.0,60348.0,0.002632]
[1727946552395,0.03797877,60349.0,60348.0,0.001632]
[1727946552396,0.02597877,60349.0,60348.0,0.001632]
[1727946552608,0.21215656,60349.0,60348.0,0.001632]
[1727946552824,0.21515765,60349.0,60348.0,0.001632]
[1727946553035,0.02347688,60349.0,60348.0,0.001632]
[1727946553241,0.02049252,60349.0,60348.0,0.167337]
[1727946553452,0.003,60349.0,60348.0,0.004632]
[1727946553727,0.003,60349.0,60348.0,0.170337]
[1727946553952,0.1657,60350.0,60348.0,0.004632]
[1727946554154,0.01754346,60349.0,60348.0,0.007632]
[1727946554624,0.18324546,60349.0,60348.0,0.007632]
[1727946554842,0.18324546,60349.0,60348.0,0.001632]
[1727946555316,0.165702,60349.0,60348.0,0.005632]
[1727946555478,0.20084815,60349.0,60348.0,0.005632]
[1727946555683,0.36403486,60349.0,60348.0,0.001632]
[1727946556337,0.39238523,60349.0,60348.0,0.001632]
[1727946556764,0.22919852,60349.0,60348.0,0.001632]
[1727946557183,0.20084815,60349.0,60348.0,0.001632]
[1727946557396,0.03514615,60349.0,60348.0,0.167337]
[1727946557825,0.01762967,60349.0,60348.0,0.167337]
[1727946558488,0.24828066,60361.0,60360.0,0.165672]
[1727946558754,0.24828066,60361.0,60357.0,0.16568]
[1727946558755,0.28327529,60361.0,60357.0,0.16568]
[1727946558953,0.01754938,60360.0,60358.0,0.165678]
[1727946559175,0.01754938,60360.0,60357.0,0.16568]
[1727946559176,0.01745087,60359.0,60357.0,0.16568]
[1727946559387,0.331302,60368.0,60350.0,0.68795352]
[1727946559601,0.001636,60361.0,60357.0,0.16568]
[1727946559817,0.001636,60361.0,60354.0,0.331374]
[1727946559818,0.01748871,60360.0,60354.0,0.331374]
[1727946560068,0.001636,60361.0,60358.0,0.165676]
[1727946560069,0.01748871,60359.0,60358.0,0.165676]
[1727946560492,0.01748871,60359.0,60357.0,0.004]
[1727946560711,0.01748871,60358.0,60357.0,0.004]
[1727946560922,0.01748871,60358.0,60357.0,0.005]
[1727946561131,0.01748871,60358.0,60357.0,0.004]
[1727946561462,0.167307,60361.0,60357.0,0.004]
[1727946561570,0.18316415,60360.0,60357.0,0.004]
[1727946561791,0.001636,60361.0,60355.0,0.331372]
[1727946561792,0.03486997,60359.0,60358.0,0.331356]
[1727946562006,0.01749015,60359.0,60358.0,0.497034]
[1727946562249,0.001636,60361.0,60358.0,0.497034]
[1727946562250,0.001636,60361.0,60359.0,0.165675]
[1727946562460,0.001636,60361.0,60360.0,0.165672]
[1727946563775,0.001636,60361.0,60360.0,0.171672]
[1727946565534,0.001636,60361.0,60360.0,0.61134486]
[1727946565755,0.001636,60361.0,60360.0,0.64483081]
[1727946565969,0.001636,60361.0,60360.0,1.52975846]
[1727946566190,0.001636,60361.0,60360.0,1.48043991]
[1727946566411,0.001636,60361.0,60360.0,0.90048939]
[1727946566655,0.001636,60361.0,60360.0,0.845717]
[1727946566874,0.002636,60361.0,60360.0,0.44435429]
[1727946567107,0.002636,60361.0,60360.0,0.272672]
[1727946567353,0.001636,60361.0,60360.0,0.270672]
[1727946567566,0.002636,60361.0,60360.0,0.172672]
[1727946567796,0.001636,60361.0,60360.0,0.170672]
[1727946568050,0.001636,60361.0,60360.0,0.165672]
[1727946568244,0.003636,60361.0,60360.0,0.016]
[1727946568460,0.003636,60361.0,60360.0,0.014]
[1727946568677,0.002636,60361.0,60360.0,0.165672]
[1727946569093,0.003636,60361.0,60360.0,0.4586441]
[1727946569299,0.003636,60361.0,60360.0,0.50800797]
[1727946569516,0.003636,60361.0,60360.0,0.4586441]
[1727946569728,0.004636,60361.0,60360.0,0.75783081]
[1727946569959,0.004636,60361.0,60360.0,0.75983081]
[1727946570180,0.002636,60361.0,60360.0,0.75183081]
[1727946570394,0.003636,60361.0,60360.0,0.75983081]
[1727946570598,0.003636,60361.0,60360.0,0.75183081]
[1727946570814,0.003636,60361.0,60360.0,0.42162765]
[1727946571036,0.004636,60361.0,60360.0,0.30639696]
[1727946571264,0.001636,60361.0,60360.0,0.165672]
[1727946571483,0.001636,60361.0,60360.0,0.2399134]
[1727946571739,0.001636,60361.0,60360.0,0.2489134]
[1727946571740,0.002636,60361.0,60360.0,0.2489134]
[1727946571958,0.168305,60361.0,60360.0,0.05849829]
[1727946572180,0.002636,60361.0,60360.0,0.188672]
[1727946572409,0.002636,60361.0,60360.0,0.023]
[1727946572616,0.002636,60361.0,60360.0,0.188672]
[1727946572825,0.002636,60361.0,60360.0,0.179672]
[1727946572826,0.001636,60361.0,60360.0,0.179672]
[1727946573065,0.001636,60361.0,60360.0,0.165672]
[1727946573276,0.002636,60361.0,60360.0,0.4596441]
[1727946573918,0.002636,60361.0,60360.0,0.4506441]
[1727946574144,0.001636,60361.0,60360.0,0.4506441]
[1727946574367,0.002636,60361.0,60360.0,0.4706441]
[1727946574575,0.001636,60361.0,60360.0,0.4596441]
[1727946574798,0.001636,60361.0,60360.0,0.4626441]
[1727946575024,0.002636,60361.0,60360.0,0.4626441]
[1727946575250,0.002636,60361.0,60360.0,0.4746441]
[1727946575935,0.002636,60361.0,60360.0,0.52414569]
[1727946576171,0.002636,60361.0,60360.0,0.73783081]
[1727946576423,0.002636,60361.0,60360.0,0.74483081]
[1727946577351,0.002636,60361.0,60360.0,0.76783081]
[1727946577600,0.002636,60361.0,60360.0,1.00269781]
[1727946577859,0.002636,60361.0,60360.0,0.76783081]
[1727946578081,0.002636,60361.0,60360.0,1.40505481]
[1727946578312,0.002636,60361.0,60360.0,1.5415596]
[1727946578551,0.002636,60361.0,60360.0,0.88473981]
[1727946579028,0.001636,60361.0,60360.0,0.74183081]
[1727946579270,0.001636,60361.0,60360.0,0.75583081]
[1727946579635,0.001636,60361.0,60360.0,0.73283081]
[1727946579727,0.002636,60361.0,60360.0,0.73283081]
[1727946580248,0.44140923,60363.0,60362.0,0.293667]
[1727946580491,0.26264093,60363.0,60362.0,1.54101371]
[1727946580735,0.16965317,60363.0,60362.0,1.57619371]
[1727946580985,0.16965317,60363.0,60362.0,1.58119371]
[1727946580986,0.04665752,60363.0,60362.0,1.58119371]
[1727946581232,5.2e-07,60363.0,60362.0,1.45504771]
[1727946581488,5.2e-07,60363.0,60362.0,0.49703371]
[1727946581740,5.2e-07,60363.0,60362.0,0.49203371]
[1727946582008,5.2e-07,60363.0,60362.0,0.61554656]
[1727946582275,5.2e-07,60363.0,60362.0,0.50603371]
[1727946582554,5.2e-07,60363.0,60362.0,0.45885371]
[1727946582817,5.2e-07,60363.0,60362.0,0.47285371]
[1727946582818,0.00100052,60363.0,60362.0,0.47285371]
[1727946583060,0.24828066,60370.0,60369.0,0.295647]
[1727946583353,0.24828066,60370.0,60369.0,0.74380581]
[1727946583626,0.000818,60373.0,60372.0,0.172639]
[1727946583864,0.000818,60373.0,60372.0,0.45882571]
[1727946585028,0.000818,60373.0,60372.0,0.99408371]
[1727946585283,0.000818,60373.0,60372.0,1.00808371]
[1727946585865,0.000818,60373.0,60372.0,0.99408371]
[1727946586101,0.24828066,60385.0,60372.0,0.99408371]
[1727946586102,0.24828066,60385.0,60384.0,0.165606]
[1727946586398,0.24828066,60385.0,60384.0,0.73676481]
[1727946586700,0.24828066,60399.0,60391.0,0.165587]
[1727946586871,0.24828066,60399.0,60398.0,0.165568]
[1727946587149,0.24828066,60399.0,60398.0,0.61372681]
[1727946587441,0.24909866,60406.0,60405.0,0.165549]
[1727946587932,0.000818,60406.0,60405.0,0.165549]
[1727946588453,0.165557,60403.0,60398.0,0.014]
[1727946588683,0.331101,60405.0,60399.0,0.165564]
[1727946588684,0.165552,60404.0,60399.0,0.165564]
[1727946589034,0.331098,60405.0,60395.0,0.1]
[1727946589168,0.331116,60402.0,60395.0,0.265576]
[1727946589408,0.165565,60399.0,60394.0,0.165578]
[1727946589651,0.16556,60401.0,60398.0,0.014]
[1727946589906,0.331122,60401.0,60395.0,0.165575]
[1727946590165,0.165566,60399.0,60393.0,0.165579]
[1727946590388,0.331129,60400.0,60394.0,0.165579]
[1727946590647,0.331141,60398.0,60389.0,0.331181]
[1727946590879,0.331125,60401.0,60394.0,0.004]
[1727946591164,0.331125,60401.0,60392.0,0.331168]
[1727946591165,0.165571,60397.0,60393.0,0.16558]
[1727946591435,0.165569,60398.0,60395.0,0.002]
[1727946592214,0.331127,60400.0,60395.0,0.167576]
[1727946592485,0.000818,60406.0,60395.0,0.002]
[1727946592486,0.24909866,60406.0,60395.0,0.002]
[1727946592729,0.01746676,60405.0,60390.0,0.2849721]
[1727946593009,0.165573,60396.0,60395.0,0.006]
[1727946593244,0.165565,60399.0,60395.0,0.171576]
[1727946593470,0.165566,60399.0,60395.0,0.171575]
[1727946593693,0.16556,60401.0,60397.0,0.16557]
[1727946594149,0.16556,60401.0,60395.0,0.007]
[1727946594150,0.331121,60401.0,60395.0,0.007]
[1727946594362,0.165566,60399.0,60395.0,0.168575]
[1727946594795,0.165566,60399.0,60395.0,0.165575]
[1727946595324,0.165566,60399.0,60392.0,0.331166]
[1727946595325,0.165566,60399.0,60397.0,0.004]
[1727946595532,0.165568,60398.0,60397.0,0.004]
[1727946595773,0.16558,60394.0,60387.0,0.331196]
[1727946596011,0.33113,60400.0,60395.0,0.006]
[1727946596225,0.165572,60397.0,60395.0,0.006]
[1727946596445,0.165573,60396.0,60395.0,0.006]
[1727946596896,0.331121,60401.0,60395.0,0.006]
[1727946597118,0.16557,60398.0,60395.0,0.011]
[1727946597355,0.165581,60394.0,60390.0,0.165588]
[1727946597620,0.331142,60397.0,60385.0,0.24828066]
[1727946597621,0.331177,60391.0,60385.0,0.24828066]
[1727946597826,0.331144,60397.0,60385.0,0.57948466]
[1727946598050,0.2849721,60403.0,60384.0,0.00845934]
[1727946598051,0.01736613,60396.0,60384.0,0.00845934]
[1727946598280,0.165581,60394.0,60390.0,0.165588]
[1727946598563,0.165581,60394.0,60389.0,0.331185]
[1727946598727,0.24828066,60397.0,60380.0,0.04934882]
[1727946598983,0.16559,60391.0,60387.0,0.165596]
[1727946599226,0.01736562,60396.0,60379.0,0.1]
[1727946599227,0.16561,60383.0,60379.0,0.1]
[1727946599440,0.165614,60382.0,60381.0,0.1]
[1727946599667,0.331219,60383.0,60379.0,0.1]
[1727946599668,0.16561,60383.0,60379.0,0.265619]
[1727946599894,0.2849721,60393.0,60379.0,0.1]
[1727946599895,0.165617,60380.0,60379.0,0.1]
[1727946600134,0.165615,60381.0,60379.0,0.1]
[1727946600367,0.3312,60387.0,60379.0,0.1]
[1727946600618,0.01733624,60386.0,60379.0,0.1]
[1727946600835,0.01733624,60386.0,60374.0,0.01347428]
[1727946600836,0.24828066,60390.0,60376.0,0.1]
[1727946601114,0.24828066,60383.0,60380.0,0.007]
[1727946601300,0.41146737,60390.0,60380.0,0.007]
[1727946601301,0.165615,60381.0,60380.0,0.007]
[1727946601528,0.331214,60384.0,60379.0,0.173619]
[1727946601529,0.16561,60383.0,60379.0,0.173619]
[1727946601756,0.16561,60383.0,60379.0,0.177619]
[1727946601976,0.16561,60383.0,60379.0,0.012]
[1727946601977,0.24828066,60383.0,60379.0,0.012]
[1727946602212,0.165599,60387.0,60377.0,0.43293829]
[1727946602448,0.0174201,60386.0,60385.0,0.165604]
[1727946602729,0.02595917,60390.0,60384.0,0.331212]
[1727946602730,0.02595917,60390.0,60389.0,0.165593]
[1727946602955,0.000818,60406.0,60396.0,0.165573]
[1727946603177,0.000818,60406.0,60392.0,0.331168]
[1727946603178,0.165566,60399.0,60392.0,0.331168]
[1727946603410,0.01726417,60396.0,60392.0,0.331164]
[1727946603630,0.2742367,60405.0,60399.0,0.165563]
[1727946603901,0.2742367,60405.0,60399.0,0.165564]
[1727946603902,0.19994296,60404.0,60399.0,0.165564]
[1727946604152,0.0172688,60403.0,60399.0,0.165564]
[1727946604389,0.01721802,60402.0,60400.0,0.165562]
[1727946604646,0.01721802,60404.0,60397.0,0.331136]
[1727946604912,0.000818,60406.0,60402.0,0.165557]
[1727946604913,0.01722921,60403.0,60402.0,0.165557]
[1727946605167,0.000818,60406.0,60405.0,0.165549]
[1727946606460,0.000818,60406.0,60405.0,0.45173571]
[1727946607191,0.000818,60406.0,60405.0,0.46073571]
[1727946607427,0.000818,60406.0,60405.0,0.45173571]
[1727946607667,0.000818,60406.0,60405.0,0.45873571]
[1727946607931,0.000818,60406.0,60405.0,0.46073571]
[1727946608179,0.000818,60406.0,60405.0,0.45373571]
[1727946608657,0.000818,60406.0,60405.0,0.46573571]
[1727946608660,0.000818,60406.0,60405.0,0.47073571]
[1727946608909,0.000818,60406.0,60405.0,0.84360793]
[1727946609159,0.000818,60406.0,60405.0,1.01713326]
[1727946609399,0.000818,60406.0,60405.0,1.42963271]
[1727946609684,0.24828066,60421.0,60420.0,0.5804801]
[1727946609946,0.24828066,60421.0,60420.0,1.47902091]
[1727946610206,0.24828066,60421.0,60420.0,1.33816191]
[1727946610448,0.000817,60429.0,60425.0,0.195494]
[1727946610697,0.000817,60429.0,60428.0,0.007]
[1727946610947,0.000817,60429.0,60428.0,0.45867271]
[1727946611245,0.000817,60429.0,60428.0,0.64645941]
[1727946611557,0.000819,60431.0,60428.0,0.64645941]
[1727946611558,0.000819,60431.0,60430.0,0.5804521]
[1727946611795,0.000819,60431.0,60430.0,1.49058581]
[1727946612075,0.000819,60431.0,60430.0,0.83255969]
[1727946612298,0.000819,60431.0,60430.0,1.46201769]
[1727946612548,0.000819,60431.0,60430.0,1.16390069]
[1727946612789,0.000819,60431.0,60430.0,0.77681881]
[1727946613797,0.000819,60431.0,60430.0,0.79081881]
[1727946614060,0.000819,60431.0,60430.0,0.54593461]
[1727946614320,0.000819,60431.0,60430.0,0.35666671]
[1727946614564,0.000819,60431.0,60430.0,0.014]
[1727946614822,0.000819,60431.0,60421.0,0.04913517]
[1727946615084,0.000819,60431.0,60424.0,0.330992]
[1727946615333,0.000819,60431.0,60430.0,0.014]
[1727946615584,0.000819,60431.0,60430.0,0.17948]
[1727946616110,0.000819,60431.0,60430.0,0.64163881]
[1727946616409,0.000819,60431.0,60430.0,0.62763881]
[1727946616672,0.000819,60431.0,60430.0,0.34266671]
[1727946617167,0.000819,60431.0,60430.0,0.35666671]
[1727946617414,0.000819,60431.0,60423.0,0.105]
[1727946617651,0.000819,60431.0,60430.0,0.014]
[1727946617882,0.000819,60431.0,60430.0,0.027]
[1727946618094,0.000819,60431.0,60430.0,0.013]
[1727946618351,0.000819,60431.0,60430.0,0.17848]
[1727946618577,0.000819,60431.0,60430.0,0.19148]
[1727946619020,0.000819,60431.0,60430.0,0.013]
[1727946619236,0.166296,60431.0,60430.0,0.026]
[1727946619975,0.000819,60431.0,60430.0,0.026]
[1727946620645,0.000819,60431.0,60430.0,0.013]
[1727946620874,0.000819,60431.0,60430.0,0.17848]
[1727946621808,0.000819,60431.0,60430.0,0.18348]
[1727946622062,0.166296,60431.0,60430.0,0.005]
[1727946622320,0.166296,60431.0,60430.0,0.009]
[1727946622541,0.000819,60431.0,60430.0,0.009]
[1727946622987,0.000819,60431.0,60430.0,0.017]
[1727946623332,0.166296,60431.0,60430.0,0.017]
[1727946623451,0.000819,60431.0,60430.0,0.17748]
[1727946623690,0.000819,60431.0,60430.0,0.16548]
[1727946623906,0.000819,60431.0,60430.0,0.008]
[1727946624132,0.000819,60431.0,60430.0,0.016]
[1727946624376,0.000819,60431.0,60430.0,0.008]
[1727946624604,0.000819,60431.0,60430.0,0.016]
[1727946624838,0.000819,60431.0,60430.0,0.18148]
[1727946625070,0.000819,60431.0,60430.0,0.016]
[1727946625293,0.166296,60431.0,60430.0,0.016]
[1727946625517,0.166296,60431.0,60430.0,0.008]
[1727946625733,0.000819,60431.0,60425.0,0.165493]
[1727946626039,0.165483,60429.0,60425.0,0.165493]
[1727946626257,0.331776,60431.0,60430.0,0.01]
[1727946626258,0.000819,60431.0,60430.0,0.01]
[1727946626485,0.000819,60431.0,60429.0,0.165483]
[1727946626711,0.000819,60431.0,60430.0,0.01]
[1727946627170,0.000819,60431.0,60430.0,0.18348]
[1727946627421,0.000819,60431.0,60430.0,0.17348]
[1727946627647,0.000819,60431.0,60430.0,0.008]
[1727946628111,0.000819,60431.0,60430.0,0.17348]
[1727946628335,0.000819,60431.0,60430.0,0.33666671]
[1727946628568,0.000819,60431.0,60430.0,0.34666671]
[1727946628800,0.000819,60431.0,60430.0,0.36966671]
[1727946629024,0.000819,60431.0,60430.0,0.5503895]
[1727946629257,0.000819,60431.0,60430.0,0.57496376]
[1727946629498,0.000819,60431.0,60430.0,0.56696376]
[1727946629749,0.000819,60431.0,60430.0,0.57896376]
[1727946629976,0.000819,60431.0,60430.0,0.55706957]
[1727946630238,0.000819,60431.0,60430.0,0.47266671]
[1727946630500,0.000819,60431.0,60430.0,0.58306878]
[1727946630795,0.000819,60431.0,60430.0,0.56906878]
[1727946630974,0.000819,60431.0,60430.0,0.56671547]
[1727946631423,0.000819,60431.0,60430.0,0.5933121]
[1727946631644,0.000819,60431.0,60430.0,0.49491003]
[1727946631880,0.000819,60431.0,60430.0,0.61791361]
[1727946632102,0.000819,60431.0,60430.0,0.49491003]
[1727946632549,0.000819,60431.0,60430.0,0.49291003]
[1727946633502,0.000819,60431.0,60430.0,0.53710818]
[1727946633728,0.000819,60431.0,60430.0,0.54210818]
[1727946634394,0.000819,60431.0,60430.0,0.49291003]
[1727946635128,0.000819,60431.0,60430.0,0.48791003]
[1727946635355,0.000819,60431.0,60430.0,0.49291003]
[1727946636475,0.000819,60431.0,60430.0,0.54210818]
[1727946636700,0.000819,60431.0,60430.0,0.54410818]
[1727946636912,0.000819,60431.0,60430.0,0.5686973]
[1727946637788,0.000817,60434.0,60430.0,0.5686973]
[1727946637789,0.000817,60434.0,60433.0,0.4804441]
[1727946637980,0.000817,60434.0,60433.0,0.8997871]
[1727946638230,0.000817,60434.0,60433.0,0.77681081]
[1727946638448,0.000817,60434.0,60433.0,0.78181081]
[1727946639127,0.000817,60434.0,60433.0,0.91585981]
[1727946639350,0.000817,60434.0,60433.0,0.89332481]
[1727946639566,0.000817,60434.0,60433.0,0.90732481]
[1727946639783,0.000817,60434.0,60433.0,0.89332481]
[1727946640230,0.000817,60434.0,60433.0,0.90732481]
[1727946640928,0.000817,60434.0,60433.0,1.03030245]
[1727946641516,0.000817,60434.0,60433.0,0.90732481]
[1727946643972,0.000817,60434.0,60433.0,1.05496599]
[1727946644210,0.000817,60438.0,60437.0,0.328641]
[1727946644466,0.000817,60438.0,60437.0,0.49182771]
[1727946645757,0.000817,60438.0,60437.0,0.50582771]
[1727946646271,0.000817,60438.0,60437.0,1.20726771]
[1727946646633,0.24828066,60445.0,60444.0,0.5804141]
[1727946646802,0.24828066,60445.0,60444.0,0.89132014]
[1727946647269,0.24828066,60452.0,60450.0,0.172425]
[1727946647540,0.24828066,60452.0,60450.0,0.74358381]
[1727946647870,0.24828066,60472.0,60450.0,0.74358381]
[1727946648091,0.0120804,60459.0,60458.0,0.5783761]
[1727946648369,0.0120804,60459.0,60458.0,0.3623054]
[1727946648611,0.0120804,60459.0,60458.0,0.38866456]
[1727946648938,0.0120804,60459.0,60458.0,0.31471205]
[1727946649120,0.0120804,60459.0,60458.0,0.265404]
[1727946649621,0.0120804,60459.0,60458.0,0.1]
[1727946649884,0.0120804,60459.0,60458.0,0.279404]
[1727946650138,0.0120804,60459.0,60458.0,0.35659071]
[1727946650426,0.0120804,60459.0,60458.0,0.64656281]
[1727946650666,0.0120804,60459.0,60458.0,0.36159071]
[1727946651493,0.0120804,60459.0,60458.0,0.45659071]
[1727946651685,0.0120804,60459.0,60458.0,0.47059071]
[1727946652665,0.0120804,60459.0,60458.0,0.48459071]
[1727946653420,0.0120804,60459.0,60458.0,0.47959071]
[1727946653698,0.0120804,60459.0,60458.0,0.58822533]
[1727946653963,0.0120804,60459.0,60458.0,0.43884625]
[1727946654214,0.0120804,60459.0,60458.0,0.03617729]
[1727946654465,0.0120804,60459.0,60458.0,0.08556332]
[1727946654719,0.0120804,60459.0,60458.0,0.00817729]
[1727946654943,0.0120804,60459.0,60458.0,0.03617729]
[1727946655193,0.0120804,60459.0,60458.0,0.014]
[1727946655451,0.0120804,60459.0,60458.0,0.013]
[1727946655686,0.4794502,60459.0,60458.0,0.025815]
[1727946656186,0.4794502,60459.0,60458.0,0.012815]
[1727946656187,0.21155809,60459.0,60458.0,0.012815]
[1727946656447,0.165411,60456.0,60451.0,0.04938603]
[1727946656728,0.37696309,60459.0,60450.0,0.38023603]
[1727946656729,0.0169967,60455.0,60450.0,0.38023603]
[1727946656952,0.165407,60457.0,60451.0,0.265422]
[1727946657195,0.01697616,60456.0,60451.0,0.31480803]
[1727946657436,0.01697616,60455.0,60453.0,0.165416]
[1727946657668,0.165404,60458.0,60453.0,0.165416]
[1727946657888,0.165404,60458.0,60451.0,0.265421]
[1727946658276,0.0259277,60458.0,60453.0,0.330835]
[1727946658381,0.0259277,60458.0,60457.0,0.165406]
[1727946658615,0.0120804,60459.0,60457.0,0.165406]
[1727946659109,0.0120804,60459.0,60458.0,0.007]
[1727946659573,0.0120804,60459.0,60455.0,0.165411]
[1727946660055,0.0120804,60459.0,60457.0,0.008]
[1727946660297,0.0120804,60459.0,60453.0,0.16318671]
[1727946660779,0.0120804,60459.0,60449.0,0.00837615]
[1727946661132,0.0120804,60459.0,60457.0,0.007]
[1727946661380,0.0120804,60459.0,60458.0,0.32859071]
[1727946661638,0.0120804,60459.0,60458.0,0.43759071]
[1727946661928,0.0120804,60459.0,60458.0,0.65498264]
[1727946662366,0.0120804,60459.0,60458.0,0.64798264]
[1727946662607,0.0120804,60459.0,60458.0,0.785419]
[1727946662849,0.00443814,60459.0,60458.0,0.69516264]
[1727946663103,0.00443814,60459.0,60458.0,1.38115211]